Cogmind - Beta 14 @@@ ROGUE MODE // 2024.12.21 @ 16:05:35 Player: blackdogzx Result: Destroyed by exploding Nuclear Reactor Performance ------------- Evolutions (2) 1000 Regions Visited (3) 600 Robots Destroyed (35) 175 Value Destroyed (1122) 1122 Prototype IDs (3) 60 Alien Tech Used (0) 0 Bonus (0) 0 TOTAL SCORE: 2957 Bonus ------- None Cogmind --------- Core Integrity 0/550 Matter 300/300 Energy 100/100 System Corruption 1% Temperature Cool (0) Movement Core (50) Location -8/Materials Parts ------- > --- POWER (2) -------- (None) > --- PROPULSION (2) --- (None) > --- UTILITY (5) ------ Signal Interpreter Improved Targeting Computer > --- WEAPON (2) ------- Katana > --- INVENTORY (5) ---- Improved EM Shotgun Beam Rifle Peak State ------------ > --- POWER ------------ Light Nuclear Core > --- PROPULSION ------- Aluminum Leg Aluminum Leg > --- UTILITY ---------- Signal Interpreter Improved Targeting Computer Particle Charger Hardened Light Armor Plating Reflective Plating > --- WEAPON ----------- Pulse Rifle Katana > --- INVENTORY -------- Improved EM Shotgun Beam Rifle Beam Rifle Improved Assault Rifle [Rating: 23] Favorites ----------- Power Ion Engine Engine Ion Engine Power Core Light Nuclear Core Propulsion Aluminum Leg Leg Aluminum Leg Utility Improved Targeting Computer Device Field Recycling Unit Storage Small Storage Unit Processor Improved Targeting Computer Protection Hardened Light Armor Plating Weapon Katana Energy Gun EM Pulse Gun Ballistic Gun Improved Assault Rifle Slashing Weapon Katana Build | -11 -10 -9 -8 ------- Run | Yrd Mat Mat Mat Slots Evolved 4 | . . 2 2 Power 1 | . . . 1 Propulsion . | . . . . Utility 3 | . . 2 1 Weapon . | . . . . Parts Attached 39 | 7 2 14 16 Power 7 | 1 . 1 5 Engine 5 | 1 . 1 3 Core 2 | . . . 2 Reactor . | . . . . Propulsion 10 | 2 . 4 4 Treads . | . . . . Leg 10 | 2 . 4 4 Wheel . | . . . . Hover . | . . . . Flight . | . . . . Utility 11 | 1 1 6 3 Device 3 | . 1 1 1 Storage 1 | 1 . . . Processor 2 | . . 1 1 Hackware . | . . . . Protection 5 | . . 4 1 Artifact . | . . . . Weapon 11 | 3 1 3 4 Energy Gun 5 | 3 . . 2 Energy Cannon . | . . . . Ballistic Gun 3 | . . 2 1 Ballistic Cannon . | . . . . Launcher . | . . . . Special Weapon . | . . . . Impact Weapon . | . . . . Slashing Weapon 3 | . 1 1 1 Piercing Weapon . | . . . . Special Melee Weapon . | . . . . Unidentified Prototypes 1 | . . 1 . Parts Lost 12 | . . 2 10 Power 2 | . . . 2 Propulsion 5 | . . 1 4 Utility 4 | . . 1 3 Weapon 1 | . . . 1 Highest Loss Streak 4 | . . 1 4 To Critical Strikes . | . . . . Average Slot Usage (%) 83 | . 87 90 74 Engine 8 | . 14 11 3 Core 2 | . . . 5 Leg 20 | . 28 21 16 Device 4 | . 2 6 3 Storage 8 | . 14 11 2 Processor 9 | . . 9 14 Protection 8 | . . 8 11 Energy Gun 4 | . 16 . 4 Ballistic Gun 6 | . . 10 3 Slashing Weapon 10 | . 11 11 9 Peak Build Rating 23 | 6 7 18 23 Average Rating 14 | 4 6 14 18 On Entrance 7 | . 6 7 15 Naked Turns . | . . . . Heaviest Build 30 | 14 15 28 30 Greatest Support 26 | 20 20 26 23 Greatest Overweight (x) 4 | . . 1 4 Average Overweight (x) . | . . . . Largest Inventory Capacity 8 | 8 8 8 8 Average Capacity 7 | 7 8 8 5 Most Carried 8 | 5 2 8 8 Average Carried 3 | . 1 4 4 Final Capacity 8 | 8 8 8 5 Final Carried 8 | . 2 8 2 Class Distribution -------------------- 80% | Mutant 19% | Scavenger-Mutant Dominant Class ---------------- Mutant | -10/Materials Mutant | -9/Materials Scavenger-Mutant | -8/Materials Resources | -11 -10 -9 -8 ----------- Run | Yrd Mat Mat Mat Matter Collected 666 | 221 59 217 169 Remotely . | . . . . Salvage Created 1406 | . 64 546 796 Parts 83 | . 6 35 42 Haulers Intercepted . | . . . . Recyclers Shooed 1 | . . . 1 Parts Field Recycled 3 | . . 3 . Retrieved Matter 21 | . . 21 . Parts Self-Destructed . | . . . . Prevented . | . . . . Kills | -11 -10 -9 -8 ------- Run | Yrd Mat Mat Mat Combat Hostiles Destroyed 30 | . 2 12 16 Melee 27 | . 2 10 15 Guns 3 | . . 2 1 Classes Destroyed 8 | . 1 5 2 Worker 1 | . . . 1 Tunneler 1 | . . 1 . Recycler 2 | . . . 2 Watcher 1 | . . 1 . Swarmer 6 | . . 2 4 Grunt 19 | . 2 8 9 Duelist 1 | . . 1 . Sentry 4 | . . 1 3 Best Kill Streak 3 | . 2 3 3 Combat Bots Only 3 | . 2 3 3 Max Kills in Single Turn 1 | . 1 1 1 Gunslinging . | . . . . Exploded . | . . . . Melee 1 | . 1 1 1 Uniques/NPCs Destroyed . | . . . . Combat | -11 -10 -9 -8 -------- Run | Yrd Mat Mat Mat Hostile Shots Fired 266 | . 8 95 163 Missed 84 | . 4 22 58 Damage Taken 2663 | . 43 973 1647 Core 696 | . 22 120 554 Absorbed by Shields . | . . . . Ignored by Resistances 52 | . . . 52 Core Remaining (%) 87 | 100 91 70 . Volleys Fired 41 | . 4 21 16 Largest 1 | . 1 1 1 Hottest 63 | . 40 23 63 Shots Fired 42 | . 4 22 16 Gun 42 | . 4 22 16 Cannon . | . . . . Launcher . | . . . . Special . | . . . . Kinetic 25 | . . 22 3 Thermal 13 | . . . 13 Explosive . | . . . . Electromagnetic 4 | . 4 . . Robot Hit Streak 5 | . . 5 2 Robot Miss Streak 6 | . 4 6 3 Penetration Max . | . . . . Secondary Targets . | . . . . Shots Hit Robots 94 | . 3 41 50 Core Hits 39 | . 2 15 22 Critical Kills . | . . . . Critical Parts Destroyed . | . . . . Critical Strikes 5 | . . . 5 Sever 5 | . . . 5 Melee Attacks 99 | . 4 40 55 Impact . | . . . . Slashing 99 | . 4 40 55 Piercing . | . . . . Sneak Attacks 6 | . . 1 5 Combat Hostiles . | . . . . Follow-up Attacks . | . . . . Damage Inflicted 2674 | . 70 956 1648 Guns 318 | . . 192 126 Cannons . | . . . . Explosions . | . . . . Melee 2356 | . 70 764 1522 Ramming . | . . . . Kinetic 225 | . . 192 33 Thermal 93 | . . . 93 Explosive . | . . . . Electromagnetic . | . . . . Impact . | . . . . Slashing 2356 | . 70 764 1522 Piercing . | . . . . Highest Corruption 4 | . . 4 1 Average Corruption 2 | . . 4 1 Corruption Purged . | . . . . Corruption Blocked . | . . . . Effects 21 | . . 15 6 Message Errors 5 | . . 2 3 Matter Fused 3 | . . 3 . Heat Flow Errors 5 | . . 4 1 Energy Discharges 4 | . . 3 1 Parts Rejected 1 | . . 1 . Data Loss (minor) 2 | . . 1 1 Misfires 1 | . . 1 . Overload Shots . | . . . . Overflow Damage 80 | . . 27 53 Projectiles . | . . . . Explosions . | . . . . Melee 80 | . . 27 53 Knockbacks . | . . . . Impact . | . . . . Kinetic . | . . . . Secondary . | . . . . Self-Inflicted Damage . | . . . . Shots . | . . . . Rammed . | . . . . Targets Rammed . | . . . . Kicked . | . . . . Crushed . | . . . . Highest Temperature 278 | . . 278 170 Average Temperature 77 | . . 107 53 Received Heat Transfer 1152 | . 24 336 792 Siege Activations . | . . . . Robots Corrupted . | . . . . Combat Hostiles . | . . . . Parts Fried . | . . . . Impact Corruptions . | . . . . Robots Melted . | . . . . Combat Hostiles . | . . . . Parts Melted . | . . . . Heat Transferred 185 | . . . 185 Parts Sabotaged . | . . . . Parts Stolen . | . . . . Parts Stripped . | . . . . Power Chain Reactions . | . . . . Alert | -11 -10 -9 -8 ------- Run | Yrd Mat Mat Mat Peak Influence 329 | . 74 196 329 Initial 31 | . . 31 26 Average 108 | . 42 80 180 Maximum Alert Level 1 | . . . 1 Low Security (%) 79 | 100 100 100 44 Level 1 20 | . . . 55 Level 2 . | . . . . Level 3 . | . . . . Level 4 . | . . . . Level 5 . | . . . . High Security . | . . . . Max Security . | . . . . Squads Dispatched 4 | . 1 . 3 Investigation 1 | . . . 1 Extermination . | . . . . Reinforcement 3 | . 1 . 2 Assault . | . . . . Garrison . | . . . . Intercept . | . . . . Searches Triggered . | . . . . Construction Impeded . | . . . . Haulers Reinforced . | . . . . Active Scanning Responses . | . . . . Cargo Convoy Interrupts . | . . . . Stealth | -11 -10 -9 -8 --------- Run | Yrd Mat Mat Mat Distress Signals 5 | . . 2 3 Communications Jammed . | . . . . Distress Signals . | . . . . Times Spotted 51 | . 4 20 27 Peak Tracking Total 8 | . 2 4 8 Tactical Retreats 4 | . . 2 2 Traps | -11 -10 -9 -8 ------- Run | Yrd Mat Mat Mat Traps Triggered 2 | . . . 2 Indirectly . | . . . . Trap Hack Attempts . | . . . . Triggered . | . . . . Disarmed . | . . . . Reprogrammed . | . . . . Reused . | . . . . Traps Extracted . | . . . . Installed . | . . . . Triggered . | . . . . Machines | -11 -10 -9 -8 ---------- Run | Yrd Mat Mat Mat Machines Disabled 1 | . . . 1 Max in Single Turn 1 | . . . 1 Machines Repaired . | . . . . Machines Dismantled . | . . . . Machines Sabotaged . | . . . . Overloaded Fab Kills . | . . . . Hacking | -11 -10 -9 -8 --------- Run | Yrd Mat Mat Mat Machines Accessed 8 | . 3 3 2 Terminals 5 | . 2 2 1 Fabricators . | . . . . Repair Stations 1 | . . 1 . Recycling Units 1 | . 1 . . Scanalyzers 1 | . . . 1 Garrison Access . | . . . . Total Hacks 28 | . 10 9 9 Successful 20 | . 7 6 7 Failed 8 | . 3 3 2 Catastrophic . | . . . . Database Lockouts . | . . . . Manual . | . . . . Terminals 14 | . 6 5 3 Fabricators . | . . . . Repair Stations 4 | . . 4 . Recycling Units 4 | . 4 . . Scanalyzers 6 | . . . 6 Garrison Access . | . . . . Terminal Hacks 12 | . 6 4 2 Record 9 | . 4 3 2 Prototype ID Bank 1 | . 1 . . Alert Level 1 | . . 1 . Locate Traps 1 | . 1 . . Fabricator Hacks . | . . . . Repair Station Hacks 2 | . . 2 . Scan Component 1 | . . 1 . Repair 1 | . . 1 . Recycling Unit Hacks 1 | . 1 . . Retrieve Matter 1 | . 1 . . Scanalyzer 5 | . . . 5 Insert Component 3 | . . . 3 Analyze 2 | . . . 2 Garrison Access Hacks . | . . . . Unauthorized Hacks . | . . . . Terminals . | . . . . Fabricators . | . . . . Repair Stations . | . . . . Recycling Units . | . . . . Scanalyzers . | . . . . Garrison Access . | . . . . Data Cores Recovered . | . . . . Used . | . . . . Hacking Detections 7 | . 3 2 2 Full Trace Events 3 | . 1 1 1 Feedback Events 1 | . . . 1 Corruption 1 | . . . 1 Feedback Blocked . | . . . . Robot Schematics Acquired . | . . . . Robots Built . | . . . . Authchips . | . . . . Time . | . . . . Total Robot Build Rating . | . . . . Part Schematics Acquired 2 | . . . 2 Parts Built . | . . . . Authchips . | . . . . Time . | . . . . Total Part Build Rating . | . . . . Parts Repaired . | . . . . Time 51 | . . 51 . Parts Recycled . | . . . . Recycled Matter . | . . . . Retrieved Matter . | . . . . Retrieved Components . | . . . . Parts Scanalyzed 2 | . . . 2 Part Schematics Acquired 2 | . . . 2 Parts Damaged . | . . . . Bothacking | -11 -10 -9 -8 ------------ Run | Yrd Mat Mat Mat Used RIF Installer . | . . . . Robots Hacked . | . . . . Non-combat . | . . . . Combat . | . . . . Robot Hacks Applied . | . . . . Relay Couplers Released . | . . . . Fabnet Peak Effective % . | . . . . Robots Rewired . | . . . . Allies Hacked . | . . . . Hacks Repelled . | . . . . Allies | -11 -10 -9 -8 -------- Run | Yrd Mat Mat Mat Total Allies . | . . . . Largest Group . | . . . . Highest-Rated Group . | . . . . Highest-Rated Ally . | . . . . Total Orders . | . . . . Ally Attacks . | . . . . Total Damage . | . . . . Kills . | . . . . Allies Corrupted . | . . . . Allies Melted . | . . . . Intel | -11 -10 -9 -8 ------- Run | Yrd Mat Mat Mat Robot Analysis Total . | . . . . Derelict Logs Recovered . | . . . . Drone Launches . | . . . . Drone Recoveries . | . . . . Exploration | -11 -10 -9 -8 ------------- Run | Yrd Mat Mat Mat Turns Passed 1996 | 61 334 864 737 Spaces Moved 1043 | 51 244 443 305 Core 36 | 20 . . 16 Treads . | . . . . Legs 1007 | 31 244 443 289 Wheels . | . . . . Hover . | . . . . Flight . | . . . . Fastest Speed 50 | 50 120 120 50 Average Speed 141 | 92 120 143 163 Slowest Speed 260 | 120 120 190 260 Overloaded Moves . | . . . . Propulsion Burnouts . | . . . . Robots Hopped . | . . . . Cave-ins Triggered . | . . . . Exploration Rate (%) 25 | 3 44 34 21 Regions Visited 3 Branch Regions . Pre-discovered Areas . | . . . . Known Exits Taken . | . . . . Unknown Exits Taken 3 | 1 1 1 . Scrap Searched . | . . . . Spaces Dug . | . . . . Terrain Destroyed . | . . . . Melee . | . . . . Projectile . | . . . . AOE . | . . . . Terrain Rammed . | . . . . Walls Destroyed . | . . . . Machines Disabled . | . . . . Actions | -11 -10 -9 -8 --------- Run | Yrd Mat Mat Mat Total 1362 | 64 272 579 447 Wait 94 | . 17 38 39 Move 1040 | 50 243 442 305 Hop . | . . . . Pick Up 23 | 6 2 11 4 Fast Attach 14 | 1 1 7 5 Attach 15 | 5 . 3 7 Detach 8 | . . 4 4 Swap 10 | 1 1 4 4 Drop 18 | 1 . 9 8 Fire 41 | . 4 21 16 Melee 99 | . 4 40 55 Ram . | . . . . Kick . | . . . . Crush . | . . . . Escape Stasis . | . . . . Rewire . | . . . . Trap . | . . . . Miscellaneous . | . . . . Route ------- -11/Scrapyard -10/Materials -9/Materials (discovered 2 exits: *Mat / [*Min]) -8/Materials History --------- Turn | Location | Event 6 | -11/Scrapyard | Discovered new exit (range 15) 62 | -11/Scrapyard | Entered Materials 254 | -10/Materials | Discovered new exit (range 13) 312 | -10/Materials | Build established: Mutant 396 | -10/Materials | Entered another Materials area 396 | -9/Materials | Evolved 2 slots: Utility x2 701 | -9/Materials | Discovered new exit (range 7) 1142 | -9/Materials | Discovered new exit (range 9) 1260 | -9/Materials | Entered another Materials area 1260 | -8/Materials | Evolved 2 slots: Power x1, Utility x1 1895 | -8/Materials | Build established: Scavenger-Mutant 1981 | -8/Materials | Core integrity fell below 50% 1992 | -8/Materials | Core integrity fell below 20% 1997 | -8/Materials | Destroyed by exploding Nuclear Reactor Last Messages --------------- 01970_ K-01 Serf collects debris. 01975_ Reflective Plating destroyed. 01976_ Pulse Rifle destroyed. 01976_ Acquired Aluminum Leg. 01980_ Lgt. Nuclear Core destroyed. 01980_ G-47 Trooper Particle Gun severed. 01981_ K-01 Serf collects debris. 01985_ Aluminum Leg destroyed. 01987_ Nuclear Reactor explodes. 01987_ K-01 Serf destroyed. 01987_ G-47 Trooper destroyed. 01989_ The unstable cave ceiling collapses. 01989_ K-01 Serf collects debris. 01990_ RX0KBDVOU/ME46T P9O2COP% 01995_ M-13 Machinist repairs G-47 Trooper. 01997_ Nuclear Reactor explodes. Map ----- +----------------------------------------------------+ | " " #?#=#???# ### ###?????????????????? | | #?# #???# ! #??? #???????????????????? | | #?# #???# #???? #???????????????????? | | ##########?#%#???# """ #?????#???????????????????? | | ?????? ?###+##### """ #?????????????????????????? | | ?????? # % ## """ #?????????????????????????? | | ?????? ""# "S ## #?????????????????????????? | | ?????? Y"# """ ## #?????????????????????????? | | ?????? "?# "" ##""" #?????????????????????????? | | ?????? ?#] ##"T #?????????????????????????? | | ???###+### % !##""" #?????????????????????????? | | #/## !####/#### #?????????????????????????? | | ### ############ ##???????????????????? | | % %T ??????????????????? | | %### / ##?######?????#??????????? | | #+## ! [###### # # #??? #??????????? | | ???###%### + ##? #???????????? | | ?????#=#?# " # """ # # ????????????? | | ?????#!#?# T # "" k m + ??????????????? | | ?????# #?# " # "" #???????????????? | | ?????# #?# #% g #???????????????? | | ?????# #?# #! =%! #???????????????? | | ?????# #?# # "" +! =b #???????????????? | | ?????# #?# # " #% #???????????????? | | ?????# #?# # """ #[ [ #???????????????? | | ?????# #?###### #@ #???????????????? | | ?????# #??????# #g[ #???????????????? | | ?????# #??????# """ #/####+###???????????????? | | ?????# ######?# """ # #??????????????????????? | | ###??#%## //#?#^ """ # #??????????????????????? | | #??#%## //#?# # #??????????????????????? | | #### ## !!#"" # #??????????????????????? | | #[! !* !!#"T /// ??????????????????????? | | # %[! ! **#"" /// ??????????????????????? | | + *= ### // ??????????????????????? | | " # #####?# ?????????????????????? | | T # #?????# ![?????????????????????? | | " ## ##?????# #### ![ ????????????????????? | | ## #??????# ???# ![ ????????????????????? | | #### #??????# ???? ?????????????????????? | | ???# #???????????? ??????????????????????? | | ???# #?????????????????????????????????????????? | | ???# #?????????????????????????????????????????? | | ???# #?????????????????????????????????????????? | | ???#####?????????????????????????????????????????? | | ?????????????????????????????????????????????????? | | ?????????????????????????????????????????????????? | | ?????????????????????????????????????????????????? | | ?????????????????????????????????????????????????? | | ?????????????????????????????????????????????????? | +----------------------------------------------------+ Best States ------------- Heat Dissipation 31 Energy Generation 19 Energy Capacity 310 Matter Stores 300 Matter Capacity 300 Sight Range 16 Robot Scan Range 14 Terrain Scan Density 10 Armor Coverage 300 Resistance: TH 10 Evasion (%) 55 Targeting Accuracy 6 Particle Charging 15 Item Schematics ----------------- Imp. EM Shotgun | -8/Materials | Scanalyzed Beam Rifle | -8/Materials | Scanalyzed Robot Schematics ------------------ None Fabricated ------------ Nothing Alien Tech Used ----------------- None Achievements -------------- None Challenges ------------ None Game ------ Seed HardlightLargeBroadsword Manual? 0 Play Time 00:33:17 Cumulative 18.6 hours Start 2024.12.21 @ 15:28:21 End 2024.12.21 @ 16:05:35 Sessions 1 Manual Loads 0 Difficulty Rogue Special Mode None Game No. 25 Rogue 22 Adventurer 3 Explorer 0 Win Type - Total 0 Types 0/0/0/0/0/0/0/0/0 Lore% 8 Gallery% 18 Achievement% 15 Wizard Run 0 Options --------- Layout 1 ASCII 0 Keyboard 1 Movement Numpad Keybinds 0 Fullscreen 1 Font 24/Smallcaps Map View 25x17 Zoom Use 2% Tactical HUD 1 Map Filters NONE Filters NONE Steam 1 RUN: 5ee80694-2c0f-4d02-8f69-f4434e3d2fd0